fUST/lending_fUST_20240727
["ID","MTS","AMOUNT","RATE_DAILY","PERIOD"]
[333302916,1722047403984,273.37336231,9.9e-05,2]
[333302917,1722047406485,182.98285056,0.0001212,2]
[333303084,1722047438880,-494.47478913,0.00013598,2]
[333303086,1722047438890,-371.21966456,0.000136,2]
[333303088,1722047438900,-594.95939629,0.00013688,2]
[333303103,1722047439035,-539.09210658,0.00013688,2]
[333303106,1722047439047,-6986.23838379,0.00013688,2]
[333303108,1722047439059,-1596.98936079,0.00013688,2]
[333303110,1722047439068,-755.43,0.00013698,2]
[333303112,1722047439078,-500.0,0.00013698,2]
[333303115,1722047439087,-456.20009205,0.00013698,2]
[333303117,1722047439097,-500.0,0.00013698,2]
[333303118,1722047439106,-500.0,0.00013698,2]
[333303120,1722047439115,-500.0,0.00013698,2]
[333303122,1722047439125,-500.0,0.00013698,2]
[333303124,1722047439135,-500.0,0.00013698,2]
[333303126,1722047439144,-507.76756896,0.00013698,2]
[333303128,1722047439154,-509.6972062,0.00013698,2]
[333303130,1722047439164,-500.0,0.00013698,2]
[333303132,1722047439174,-940.39,0.00013698,2]
[333303134,1722047439183,-587.62,0.00013698,2]
[333303136,1722047439193,-715.91,0.00013698,2]
[333303138,1722047439202,-500.0,0.00013698,2]
[333303140,1722047439213,-500.0,0.00013698,2]
[333303142,1722047439223,-691.17,0.00013698,2]
[333303144,1722047439232,-555.0,0.00013698,2]
[333303146,1722047439242,-630.55,0.00013698,2]
[333303148,1722047439251,-300.55482306,0.00013698,2]
[333303150,1722047439260,-500.0,0.00013698,2]
[333303152,1722047439270,-580.54,0.00013698,2]
[333303154,1722047439279,-500.0,0.00013698,2]
[333303156,1722047439289,-769.03,0.00013698,2]
[333303158,1722047439298,-500.0,0.00013698,2]
[333303160,1722047439308,-581.06,0.00013698,2]
[333303162,1722047439318,-500.0,0.00013698,2]
[333303164,1722047439327,-500.0,0.00013698,2]
[333303166,1722047439337,-500.0,0.00013698,2]
[333303168,1722047439346,-739.38,0.00013698,2]
[333303170,1722047439355,-500.0,0.00013698,2]
[333303172,1722047439364,-484.12304263,0.00013698,2]
[333303174,1722047439373,-500.0,0.00013698,2]
[333303176,1722047439382,-500.0,0.00013698,2]
[333303178,1722047439392,-929.27,0.00013698,2]
[333303180,1722047439401,-500.0,0.00013698,2]
[333303182,1722047439410,-500.0,0.00013698,2]
[333303184,1722047439419,-737.96,0.00013698,2]
[333303186,1722047439430,-741.59,0.00013698,2]
[333303188,1722047439440,-500.0,0.00013698,2]
[333303190,1722047439449,-500.0,0.00013698,2]
[333303192,1722047439461,-500.0,0.00013698,2]
[333303194,1722047439470,-647.98962232,0.00013698,2]
[333303196,1722047439480,-1327.02,0.00013698,2]
[333303198,1722047439489,-717.55,0.00013698,2]
[333303200,1722047439499,-607.23,0.00013698,2]
[333303202,1722047439508,-500.0,0.00013698,2]
[333303204,1722047439518,-500.0,0.00013698,2]
[333303206,1722047439527,-632.83,0.00013698,2]
[333303208,1722047439537,-505.7544177,0.00013698,2]
[333303210,1722047439546,-500.0,0.00013698,2]
[333303212,1722047439556,-500.0,0.00013698,2]
[333303215,1722047439565,-288.51847172,0.00013698,2]
[333303217,1722047439578,-211.48152828,0.00013698,2]
[333303219,1722047439587,-500.0,0.00013698,2]
[333303221,1722047439598,-500.0,0.00013698,2]
[333303223,1722047439608,-612.24,0.00013698,2]
[333303225,1722047439617,-511.75483943,0.00013698,2]
[333303227,1722047439627,-500.0,0.00013698,2]
[333303229,1722047439636,-500.0,0.00013698,2]
[333303231,1722047439646,-500.0,0.00013698,2]
[333303233,1722047439656,-500.0,0.00013698,2]
[333303236,1722047439666,-500.0,0.00013698,2]
[333303238,1722047439675,-500.0,0.00013698,2]
[333303240,1722047439685,-500.0,0.00013698,2]
[333303242,1722047439694,-443.03096489,0.00013698,2]
[333303243,1722047439704,-304.54307663,0.00013698,2]
[333303246,1722047439714,-1072.75,0.00013698,2]
[333303248,1722047439723,-1463.69,0.00013698,2]
[333303250,1722047439733,-860.32,0.00013698,2]
[333303252,1722047439743,-500.0,0.00013698,2]
[333303254,1722047439752,-973.88,0.00013698,2]
[333303256,1722047439762,-1912.39,0.00013698,2]
[333303258,1722047439772,-2268.77406066,0.00013698,2]
[333303620,1722047443831,-376.92598662,0.00013698,2]
[333303921,1722047446777,-2508.14995272,0.00013698,2]
[333303923,1722047446789,-500.0,0.00013698,2]
[333303925,1722047446800,-500.0,0.00013698,2]
[333303927,1722047446810,-1838.18,0.00013698,2]
[333303929,1722047446819,-500.0,0.00013698,2]
[333303931,1722047446829,-500.0,0.00013698,2]
[333303933,1722047446839,-4152.64504728,0.00013698,2]
[333304628,1722047454046,505.12,0.00010959,2]
[333306726,1722047504968,200.0,0.0001,2]
[333306727,1722047505046,400.0,0.0001137,2]
[333306728,1722047522362,292.45143947,0.00010959,2]
[333306729,1722047522384,1970.70284957,0.00010959,2]
[333306730,1722047522407,1954.57552041,0.00010959,2]
[333306731,1722047522429,2034.046522,0.00010959,2]
[333306732,1722047522452,1975.42826895,0.00010959,2]
[333306733,1722047810166,192.5619519,0.00023349,120]
[333306739,1722048435257,-182.98285056,9.999e-05,2]
[333306740,1722048435279,-154.96143503,9.999e-05,2]
[333306741,1722048435303,-231.90118093,0.0001,2]
[333306742,1722048435326,-153.61759137,0.00012673,2]
[333306743,1722048443139,-56.43949263,0.00012673,2]
[333306744,1722048443165,-210.057084,0.00013334,2]
[333306745,1722048443193,-198.913267,0.00013425,2]
[333306746,1722048443218,-1524.06309899,0.000135,3]
[333306774,1722048632868,-478.33755453,0.000135,3]
[333306776,1722048632879,-8073.23722709,0.000135,2]
[333306778,1722048632889,-247.24187163,0.00013598,2]
[333306780,1722048632899,-247.24187163,0.00013667,2]
[333306781,1722048632910,-9330.88893221,0.00013688,2]
[333306782,1722048632922,-500.0,0.00013698,2]
[333306783,1722048632933,-500.0,0.00013698,2]
[333306784,1722048632942,-500.0,0.00013698,2]
[333306785,1722048632951,-500.0,0.00013698,2]
[333306786,1722048632962,-707.21,0.00013698,2]
[333306787,1722048632972,-500.0,0.00013698,2]
[333306788,1722048632982,-753.29,0.00013698,2]
[333306789,1722048632991,-500.0,0.00013698,2]
[333306790,1722048633002,-500.0,0.00013698,2]
[333306791,1722048633012,-500.0,0.00013698,2]
[333306792,1722048633022,-500.0,0.00013698,2]
[333306793,1722048633031,-500.0,0.00013698,2]
[333306794,1722048633040,-531.88,0.00013698,2]
[333306795,1722048633050,-604.28,0.00013698,2]
[333306796,1722048633061,-540.98833513,0.00013698,2]
[333306797,1722048633071,-500.0,0.00013698,2]
[333306798,1722048633081,-555.66593348,0.00013698,2]
[333306799,1722048633091,-500.0,0.00013698,2]
[333306800,1722048633100,-556.35,0.00013698,2]
[333306801,1722048633111,-500.0,0.00013698,2]
[333306802,1722048633121,-633.1412792,0.00013698,2]
[333306803,1722048633133,-736.99,0.00013698,2]
[333306804,1722048633143,-500.0,0.00013698,2]
[333306805,1722048633152,-582.12,0.00013698,2]
[333306806,1722048633162,-503.68808457,0.00013698,2]
[333306807,1722048633171,-743.53,0.00013698,2]
[333306808,1722048633182,-174.7383154,0.00013698,2]
[333306809,1722048633193,-500.0,0.00013698,2]
[333306810,1722048633203,-500.0,0.00013698,2]
[333306811,1722048633212,-500.0,0.00013698,2]
[333306812,1722048633227,-708.58,0.00013698,2]
[333306813,1722048633238,-10.13357882,0.00013698,2]
[333306814,1722048633270,-489.86642118,0.00013698,2]
[333306815,1722048633280,-167.04236698,0.00013698,2]
[333306848,1722048638970,-332.95763302,0.00013698,2]
[333306849,1722048638980,-500.0,0.00013698,2]
[333306850,1722048638990,-500.0,0.00013698,2]
[333306851,1722048639001,-514.68701882,0.00013698,2]
[333306852,1722048639015,-375.86298118,0.00013698,2]
[333306853,1722048639027,-505.23836905,0.00013698,2]
[333306854,1722048639038,-500.0,0.00013698,2]
[333306855,1722048639048,-710.69,0.00013698,2]
[333306856,1722048639060,-500.0,0.00013698,2]
[333306857,1722048639070,-500.0,0.00013698,2]
[333306858,1722048639080,-1271.73,0.00013698,2]
[333306859,1722048639090,-723.95,0.00013698,2]
[333306860,1722048639100,-250.87938558,0.00013698,2]
[333306861,1722048639112,-500.0,0.00013698,2]
[333306862,1722048639122,-500.0,0.00013698,2]
[333306863,1722048639133,-500.0,0.00013698,2]
[333306864,1722048639144,-500.0,0.00013698,2]
[333306865,1722048639155,-1111.71,0.00013698,2]
[333306866,1722048639164,-581.93,0.00013698,2]
[333306867,1722048639174,-581.19,0.00013698,2]
[333306868,1722048639184,-500.0,0.00013698,2]
[333306869,1722048639194,-500.0,0.00013698,2]
[333306870,1722048639205,-310.46451421,0.00013698,2]
[333306871,1722048639216,-500.0,0.00013698,2]
[333306872,1722048639230,-500.0,0.00013698,2]
[333306873,1722048639240,-508.28510947,0.00013698,2]
[333306874,1722048639251,-500.0,0.00013698,2]
[333306875,1722048639261,-604.30255886,0.00013698,2]
[333306876,1722048639271,-586.73,0.00013698,2]
[333306877,1722048639280,-513.10875243,0.00013698,2]
[333306878,1722048639289,-500.0,0.00013698,2]
[333306879,1722048639301,-500.0,0.00013698,2]
[333306880,1722048639310,-500.0,0.00013698,2]
[333306881,1722048639319,-500.0,0.00013698,2]
[333306882,1722048639328,-500.0,0.00013698,2]
[333306883,1722048639338,-503.27356244,0.00013698,2]
[333306884,1722048639348,-502.78837259,0.00013698,2]
[333306885,1722048639358,-500.0,0.00013698,2]
[333306886,1722048639368,-170.7946,0.00013698,2]
[333306887,1722048639378,-508.75893975,0.00013698,2]
[333306888,1722048639390,-500.0,0.00013698,2]
[333306889,1722048639400,-504.05901394,0.00013698,2]
[333306890,1722048639412,-1106.51,0.00013698,2]
[333306891,1722048639422,-504.63809085,0.00013698,2]
[333306892,1722048639433,-4939.11,0.00013698,2]
[333306893,1722048639443,-500.0,0.00013698,2]
[333306894,1722048639454,-500.0,0.00013698,2]
[333306895,1722048639465,-1417.0806881,0.00013698,2]
[333306904,1722048643806,-55.5493119,0.00013698,2]
[333306905,1722048643816,-151.340375,0.00013698,2]
[333306906,1722048643826,-500.0,0.00013698,2]
[333306907,1722048643836,-500.0,0.00013698,2]
[333306908,1722048643846,-500.0,0.00013698,2]
[333306909,1722048643855,-848.70117486,0.00013698,2]
[333306946,1722048644647,-235.47882514,0.00013698,2]
[333306947,1722048644657,-500.0,0.00013698,2]
[333306948,1722048644667,-636.90499462,0.00013698,2]
[333306949,1722048644678,-1937.17,0.00013698,2]
[333306950,1722048644687,-151.0,0.00013698,2]
[333306951,1722048644697,-151.0,0.00013698,2]
[333306952,1722048644707,-500.0,0.00013698,2]
[333306953,1722048644716,-500.0,0.00013698,2]
[333306954,1722048644726,-151.0,0.00013698,2]
[333306955,1722048644736,-500.0,0.00013698,2]
[333306956,1722048644745,-500.0,0.00013698,2]
[333306957,1722048644755,-1861.0,0.00013698,2]
[333306958,1722048644765,-151.00000098,0.00013698,2]
[333306959,1722048644775,-500.0,0.00013698,2]
[333306960,1722048644785,-500.0,0.00013698,2]
[333306961,1722048644794,-7201.36,0.00013698,2]
[333306962,1722048644804,-500.0,0.00013698,2]
[333306964,1722048644814,-500.0,0.00013698,2]
[333306965,1722048644824,-500.0,0.00013698,2]
[333306966,1722048644834,-3294.92,0.00013698,2]
[333306967,1722048644843,-500.0,0.00013698,2]
[333306968,1722048644853,-500.0,0.00013698,2]
[333306969,1722048644863,-794.41,0.00013698,2]
[333306970,1722048644873,-500.0,0.00013698,2]
[333306971,1722048644882,-1558.05,0.00013698,2]
[333306972,1722048644892,-1116.15,0.00013698,2]
[333306973,1722048644902,-296.954584,0.00013698,2]
[333306974,1722048644912,-632.34,0.00013698,2]
[333306975,1722048644922,-296.954584,0.00013698,2]
[333306976,1722048644931,-1684.56,0.00013698,2]
[333306977,1722048644943,-2313.13,0.00013698,2]
[333306978,1722048644953,-500.0,0.00013698,2]
[333306979,1722048644962,-1203.54,0.00013698,2]
[333306980,1722048644972,-437.972251,0.00013698,2]
[333306981,1722048644983,-500.0,0.00013698,2]
[333306982,1722048644992,-437.972251,0.00013698,2]
[333306983,1722048645002,-537.05,0.00013698,2]
[333306984,1722048645012,-1987.08,0.00013698,2]
[333306985,1722048645021,-512.81092257,0.00013698,2]
[333306986,1722048645031,-819.63,0.00013698,2]
[333306987,1722048645041,-500.0,0.00013698,2]
[333306988,1722048645050,-318.289198,0.00013698,2]
[333306989,1722048645060,-222.45495521,0.00013698,2]
[333306990,1722048645070,-318.289198,0.00013698,2]
[333306991,1722048645079,-1077.19,0.00013698,2]
[333306992,1722048645089,-500.0,0.00013698,2]
[333306993,1722048645098,-500.0,0.00013698,2]
[333306994,1722048645108,-881.19,0.00013698,2]
[333306995,1722048645118,-759.65,0.00013698,2]
[333306996,1722048645128,-182.961424,0.00013698,2]
[333306997,1722048645137,-151.0,0.00013698,2]
[333306998,1722048645147,-500.0,0.00013698,2]
[333306999,1722048645156,-5973.71,0.00013698,2]
[333307000,1722048645166,-182.961424,0.00013698,2]
[333307001,1722048645175,-697.69,0.00013698,2]
[333307002,1722048645185,-1151.27,0.00013698,2]
[333307003,1722048645194,-500.0,0.00013698,2]
[333307004,1722048645204,-151.0,0.00013698,2]
[333307005,1722048645214,-2264.78,0.00013698,2]
[333307006,1722048645227,-901.21,0.00013698,2]
[333307007,1722048645236,-583.21,0.00013698,2]
[333307008,1722048645246,-500.0,0.00013698,2]
[333307009,1722048645256,-505.90471443,0.00013698,2]
[333307010,1722048645266,-500.0,0.00013698,2]
[333307011,1722048645276,-500.0,0.00013698,2]
[333307012,1722048645286,-500.0,0.00013698,2]
[333307013,1722048645295,-899.5,0.00013698,2]
[333307014,1722048645305,-500.0,0.00013698,2]
[333307015,1722048645315,-3076.18,0.00013698,2]
[333307016,1722048645324,-500.0,0.00013698,2]
[333307017,1722048645333,-500.0,0.00013698,2]
[333307018,1722048645343,-659.94,0.00013698,2]
[333307019,1722048645353,-989.91,0.00013698,2]
[333307020,1722048645365,-500.0,0.00013698,2]
[333307021,1722048645374,-1068.65,0.00013698,2]
[333307022,1722048645383,-904.93,0.00013698,2]
[333307023,1722048645394,-750.45,0.00013698,2]
[333307024,1722048645407,-500.0,0.00013698,2]
[333307025,1722048645419,-1178.43,0.00013698,2]
[333307026,1722048645430,-500.0,0.00013698,2]
[333307027,1722048645440,-502.64225499,0.00013698,2]
[333307028,1722048645450,-563.14,0.00013698,2]
[333307029,1722048645459,-730.24,0.00013698,2]
[333307030,1722048645469,-1152.34,0.00013698,2]
[333307031,1722048645480,-500.0,0.00013698,2]
[333307032,1722048645489,-500.0,0.00013698,2]
[333307033,1722048645498,-506.81715361,0.00013698,2]
[333307034,1722048645508,-500.0,0.00013698,2]
[333307035,1722048645518,-1779.6,0.00013698,2]
[333307036,1722048645528,-575.81,0.00013698,2]
[333307037,1722048645537,-2602.92,0.00013698,2]
[333307038,1722048645546,-500.0,0.00013698,2]
[333307039,1722048645556,-2266.6,0.00013698,2]
[333307040,1722048645566,-339.724346,0.00013698,2]
[333307041,1722048645576,-1371.3,0.00013698,2]
[333307042,1722048645585,-1371.3,0.00013698,2]
[333307043,1722048645595,-1900.02,0.00013698,2]
[333307044,1722048645756,-151.0,0.00013698,2]
[333307045,1722048645766,-339.724346,0.00013698,2]
[333307046,1722048645776,-662.38,0.00013698,2]
[333307047,1722048645785,-686.08,0.00013698,2]
[333307048,1722048645796,-151.0,0.00013698,2]
[333307049,1722048645805,-500.0,0.00013698,2]
[333307050,1722048645815,-2004.17,0.00013698,2]
[333307051,1722048645825,-501.55,0.00013698,2]
[333307052,1722048645834,-49.66254808,0.00013698,2]
[333307574,1722048702350,200.0,0.0001,2]
[333307575,1722048702419,400.0,0.0001137,2]
[333307576,1722048746427,166.29942894,0.0001137,2]
[333307577,1722048934176,304.0,0.000233,120]
[333307579,1722049038394,831.69387135,0.00022,30]
[333307580,1722049066978,7914.0,0.0001,10]
[333307581,1722049277836,6168.0,0.0001,10]
[333307582,1722049538145,-182.98285056,9.999e-05,2]
[333307583,1722049538166,-631.46759713,0.00013157,2]
[333307584,1722049538188,-601.68805143,0.00013412,2]
[333307585,1722049538211,-539.69559778,0.00013533,2]
[333307586,1722049628095,-300.0,0.00013532,2]
[333307587,1722049628117,-2030.32783403,0.00013533,2]
[333307588,1722049641270,-99.84519912,0.00013533,2]
[333307589,1722049641292,-7548.51635982,0.00013533,2]
[333307590,1722049641316,-313.0072477,0.00013561,2]
[333307591,1722049641339,-184.5006891,0.00013576,2]
[333307592,1722049641363,-487.02201765,0.00013588,2]
[333307593,1722049641385,-185.43140373,0.00013588,2]
[333307594,1722049641407,-185.43140372,0.00013591,2]
[333307595,1722049641429,-185.43140372,0.00013595,2]
[333307596,1722049641451,-749.39824728,0.00013598,2]
[333307597,1722049641473,-185.43140372,0.00013598,2]
[333307598,1722049641494,-34807.05235652,0.00013598,2]
[333307599,1722049646319,-1651.3686355,0.00013598,2]
[333307602,1722049813071,200.0,0.0001,2]
[333307603,1722049813124,400.0,0.0001137,2]
[333307644,1722049832311,-156.5036238,0.00013561,2]
[333307647,1722049832324,-426.14426547,0.00013588,2]
[333307649,1722049832334,-335.47170962,0.00013597,2]
[333307900,1722049839515,-780.5745866,0.00013597,2]
[333307902,1722049839525,-12156.23158299,0.00013598,2]
[333307989,1722049840421,-4302.88395964,0.00013598,2]
[333307992,1722049840434,-35970.46346535,0.00013598,2]
[333307994,1722049840444,-162997.00759295,0.00013688,2]
[333308153,1722049843060,-953.46,0.00013688,2]
[333308158,1722049846721,-326.32432505,0.00013688,2]
[333308159,1722049846731,-10267.2994949,0.00013689,2]
[333308160,1722049846741,-5788.7,0.00013698,2]
[333308161,1722049846750,-5788.7,0.00013698,2]
[333308162,1722049846760,-5788.7,0.00013698,2]
[333308163,1722049846769,-5788.7,0.00013698,2]
[333308164,1722049846779,-5788.7,0.00013698,2]
[333308165,1722049846788,-5788.7,0.00013698,2]
[333308166,1722049846798,-5788.7,0.00013698,2]
[333308167,1722049846808,-5788.7,0.00013698,2]
[333308168,1722049846823,-5788.7,0.00013698,2]
[333308169,1722049846832,-5788.7,0.00013698,2]
[333308170,1722049846842,-5788.7,0.00013698,2]
[333308171,1722049846852,-5788.7,0.00013698,2]
[333308172,1722049846863,-5788.7,0.00013698,2]
[333308173,1722049846873,-5788.7,0.00013698,2]
[333308174,1722049846882,-5788.7,0.00013698,2]
[333308175,1722049846891,-5788.7,0.00013698,2]
[333308176,1722049846902,-5788.7,0.00013698,2]
[333308177,1722049846911,-5788.7,0.00013698,2]
[333308178,1722049846921,-5788.7,0.00013698,2]
[333308179,1722049846930,-5788.7,0.00013698,2]
[333308180,1722049846939,-5788.7,0.00013698,2]
[333308181,1722049846948,-5788.7,0.00013698,2]
[333308182,1722049846959,-5788.7,0.00013698,2]
[333308183,1722049846969,-5788.74913323,0.00013698,2]
[333308184,1722049846978,-2611.71763324,0.00013698,2]
[333308185,1722049846988,-501.63106055,0.00013698,2]
[333308186,1722049846999,-500.0,0.00013698,2]
[333308188,1722049847009,-503.97717889,0.00013698,2]
[333308190,1722049847018,-516.12216498,0.00013698,2]
[333308192,1722049847027,-314.69811874,0.00013698,2]
[333308193,1722049847037,-500.0,0.00013698,2]
[333308194,1722049847047,-500.0,0.00013698,2]
[333308195,1722049847057,-500.0,0.00013698,2]
[333308196,1722049847066,-515.48392206,0.00013698,2]
[333308197,1722049847077,-500.0,0.00013698,2]
[333308198,1722049847086,-500.0,0.00013698,2]
[333308199,1722049847096,-500.0,0.00013698,2]
[333308200,1722049847105,-535.69019225,0.00013698,2]
[333308201,1722049847115,-500.0,0.00013698,2]
[333308202,1722049847124,-505.12273513,0.00013698,2]
[333308203,1722049847134,-501.45028986,0.00013698,2]
[333308204,1722049847143,-500.0,0.00013698,2]
[333308205,1722049847153,-500.0,0.00013698,2]
[333308206,1722049847162,-502.64075671,0.00013698,2]
[333308207,1722049847173,-500.0,0.00013698,2]
[333308208,1722049847182,-588.8836554,0.00013698,2]
[333308209,1722049847192,-502.4408457,0.00013698,2]
[333308210,1722049847201,-402.22049945,0.00013698,2]
[333308211,1722049847211,-500.0,0.00013698,2]
[333308212,1722049847221,-500.0,0.00013698,2]
[333308213,1722049847230,-500.0,0.00013698,2]
[333308214,1722049847239,-500.0,0.00013698,2]
[333308215,1722049847249,-500.0,0.00013698,2]
[333308216,1722049847258,-500.0,0.00013698,2]
[333308217,1722049847268,-500.0,0.00013698,2]
[333308218,1722049847278,-500.0,0.00013698,2]
[333308219,1722049847287,-500.0,0.00013698,2]
[333308220,1722049847297,-500.0,0.00013698,2]
[333308221,1722049847461,-249.11764204,0.00013698,2]
[333308222,1722049847471,-500.0,0.00013698,2]
[333308223,1722049847482,-500.0,0.00013698,2]
[333308224,1722049847491,-500.0,0.00013698,2]
[333308225,1722049847501,-522.34682557,0.00013698,2]
[333308226,1722049847510,-501.86790933,0.00013698,2]
[333308227,1722049847519,-500.0,0.00013698,2]
[333308228,1722049847528,-500.0,0.00013698,2]
[333308229,1722049847537,-500.0,0.00013698,2]
[333308230,1722049847547,-500.0,0.00013698,2]
[333308231,1722049847556,-472.11000108,0.00013698,2]
[333308232,1722049847565,-509.56698195,0.00013698,2]
[333308233,1722049847574,-500.0,0.00013698,2]
[333308234,1722049847583,-500.0,0.00013698,2]
[333308235,1722049847592,-500.0,0.00013698,2]
[333308236,1722049847602,-500.0,0.00013698,2]
[333308237,1722049847612,-500.0,0.00013698,2]
[333308238,1722049847622,-501.19798252,0.00013698,2]
[333308239,1722049847632,-500.0,0.00013698,2]
[333308240,1722049847641,-500.0,0.00013698,2]
[333308241,1722049847650,-500.0,0.00013698,2]
[333308242,1722049847659,-500.0,0.00013698,2]
[333308243,1722049847669,-500.0,0.00013698,2]
[333308244,1722049847678,-500.0,0.00013698,2]
[333308245,1722049847687,-500.0,0.00013698,2]
[333308246,1722049847697,-501.86706973,0.00013698,2]
[333308247,1722049847706,-500.0,0.00013698,2]
[333308248,1722049847717,-151.0,0.00013698,2]
[333308249,1722049847727,-151.0,0.00013698,2]
[333308250,1722049847736,-151.0,0.00013698,2]
[333308251,1722049847745,-151.0,0.00013698,2]
[333308252,1722049847754,-151.0,0.00013698,2]
[333308253,1722049847764,-151.0,0.00013698,2]
[333308254,1722049847773,-151.0,0.00013698,2]
[333308255,1722049847783,-151.0,0.00013698,2]
[333308256,1722049847792,-151.0,0.00013698,2]
[333308257,1722049847801,-151.0,0.00013698,2]
[333308258,1722049847812,-151.0,0.00013698,2]
[333308259,1722049847825,-151.0,0.00013698,2]
[333308260,1722049847834,-295.322502,0.00013698,2]
[333308261,1722049847844,-500.0,0.00013698,2]
[333308262,1722049847853,-500.0,0.00013698,2]
[333308263,1722049847863,-503.86837852,0.00013698,2]
[333308264,1722049847872,-500.0,0.00013698,2]
[333308265,1722049847881,-500.0,0.00013698,2]
[333308266,1722049847891,-500.0,0.00013698,2]
[333308267,1722049847901,-885.34,0.00013698,2]
[333308268,1722049847910,-502.37274051,0.00013698,2]
[333308269,1722049847920,-516.2331437,0.00013698,2]
[333308270,1722049847930,-500.0,0.00013698,2]
[333308271,1722049847939,-500.0,0.00013698,2]
[333308272,1722049847948,-500.0,0.00013698,2]
[333308273,1722049847958,-523.69562723,0.00013698,2]
[333308274,1722049847970,-500.0,0.00013698,2]
[333308275,1722049847980,-503.6376075,0.00013698,2]
[333308276,1722049847991,-505.01720889,0.00013698,2]
[333308277,1722049848000,-500.0,0.00013698,2]
[333308278,1722049848011,-501.86759777,0.00013698,2]
[333308279,1722049848021,-500.0,0.00013698,2]
[333308280,1722049848031,-506.32495523,0.00013698,2]
[333308281,1722049848040,-507.12624239,0.00013698,2]
[333308282,1722049848050,-500.0,0.00013698,2]
[333308283,1722049848060,-501.65881225,0.00013698,2]
[333308284,1722049848070,-500.0,0.00013698,2]
[333308285,1722049848080,-500.0,0.00013698,2]
[333308286,1722049848090,-500.0,0.00013698,2]
[333308287,1722049848101,-500.0,0.00013698,2]
[333308288,1722049848111,-500.0,0.00013698,2]
[333308289,1722049848122,-500.0,0.00013698,2]
[333308290,1722049848132,-500.0,0.00013698,2]
[333308291,1722049848142,-500.0,0.00013698,2]
[333308292,1722049848153,-803.68,0.00013698,2]
[333308293,1722049848163,-500.0,0.00013698,2]
[333308294,1722049848173,-500.0,0.00013698,2]
[333308295,1722049848183,-500.0,0.00013698,2]
[333308296,1722049848193,-500.0,0.00013698,2]
[333308297,1722049848204,-501.44353422,0.00013698,2]
[333308298,1722049848215,-477.89034927,0.00013698,2]
[333308299,1722049848225,-500.0,0.00013698,2]
[333308300,1722049848234,-500.0,0.00013698,2]
[333308301,1722049848245,-500.0,0.00013698,2]
[333308302,1722049848256,-500.0,0.00013698,2]
[333308303,1722049848266,-500.0,0.00013698,2]
[333308304,1722049848276,-500.0,0.00013698,2]
[333308305,1722049848286,-516.32779884,0.00013698,2]
[333308306,1722049848296,-1251.32,0.00013698,2]
[333308307,1722049848306,-476.79300833,0.00013698,2]
[333308308,1722049848316,-500.0,0.00013698,2]
[333308309,1722049848327,-528.83047785,0.00013698,2]
[333308310,1722049848337,-500.0,0.00013698,2]
[333308311,1722049848348,-538.12921411,0.00013698,2]
[333308312,1722049848358,-500.0,0.00013698,2]
[333308313,1722049848368,-500.0,0.00013698,2]
[333308314,1722049848378,-500.0,0.00013698,2]
[333308315,1722049848389,-500.0,0.00013698,2]
[333308316,1722049848400,-500.0,0.00013698,2]
[333308317,1722049848411,-500.12348663,0.00013698,2]
[333308318,1722049848422,-500.0,0.00013698,2]